[Event "FIDE World Cup O12-A 2024"]
[Site "Batumi"]
[Date "2024.06.24"]
[Round "2.1"]
[White "Yang, ZiLong"]
[Black "Wang, Ted"]
[Result "1-0"]
[ECO "B33"]
[WhiteElo "1874"]
[BlackElo "2034"]
[Annotator "NA RC"]
[PlyCount "109"]
[EventDate "2024.06.23"]
[EventType "swiss"]
[EventCountry "GEO"]
[SourceTitle "playchess.com"]
[Source "ChessBase"]
[SourceQuality "1"]
[TimeControl "5400+30"]

1. e4 {[%emt 0:00:07]} c5 {[%emt 0:00:06]} 2. Nf3 {[%emt 0:00:13]} Nc6 {[%emt 0:00:14]} 3. d4 {[%emt 0:00:07]} cxd4 {[%emt 0:00:11]} 4. Nxd4 {[%emt 0:00:06]} Nf6 {[%emt 0:00:09]} 5. Nc3 {[%emt 0:00:17]} e5 {[%emt 0:00:38]} 6. Ndb5 {[%emt 0:00:17]} d6 {[%emt 0:00:11]} 7. Nd5 {[%emt 0:00:36]} Nxd5 {[%emt 0:00:20]} 8. exd5 {[%emt 0:00:27]} Nb8 {[%emt 0:00:21]} 9. a4 {[%emt 0:00:19]} Be7 {[%emt 0:00:11]} 10. Be2 {[%emt 0:00:18]} O-O {[%emt 0:00:11]} 11. O-O {[%emt 0:00:22] B33: Sicilian: Pelikan and Sveshnikov Variations.} Nd7 {[%emt 0:00:14]} 12. Bd2 {[%emt 0:00:49]} f5 {[%emt 0:00:16]} 13. a5 {[%emt 0:00:14]} a6 {[%emt 0:00:07]} 14. Na3 {[%emt 0:00:04]} e4 {[%emt 0:00:09]} 15. Nc4 {[%emt 0:00:22]} Ne5 {[%emt 0:00:10]} 16. Nb6 {[%emt 0:00:11]} Rb8 {[%emt 0:00:17]} 17. f4 {[%emt 0:00:11]} exf3 {[%emt 0:01:15]} 18. Bxf3 {[%emt 0:00:07]} g5 {[%emt 0:07:06]} 19. c4 {[%emt 0:07:12]} f4 {[%emt 0:03:51]} 20. Be4 {[%emt 0:03:11]} Bg4 {[%emt 0:04:38]} 21. Qc2 {[%emt 0:03:07]} Rf7 {[%emt 0:09:13]} 22. Bc3 {[%emt 0:02:18]} Qc7 {[%emt 0:07:51]} 23. b4 {[%emt 0:03:37]} Bf6 {[%emt 0:03:33]} 24. h3 {[%emt 0:25:43]} (24. Rae1 $16) 24... Bh5 {[%emt 0:01:26]} 25. Rac1 $1 {[%emt 0:14:52]} Rbf8 {[%emt 0:09:20]} 26. c5 {[%emt 0:07:38]} Kh8 $16 {[%emt 0:05:11]} 27. Nc4 {[%emt 0:06:41]} Nxc4 {[%emt 0:04:44]} 28. Bxf6+ {[%emt 0:00:05]} Rxf6 {[%emt 0:00:09]} 29. Qxc4 {[%emt 0:00:02]} f3 {[%emt 0:09:22]} 30. Qd4 {[%emt 0:01:17]} dxc5 {[%emt 0:04:10]} 31. bxc5 {[%emt 0:00:16]} Qf4 {[%emt 0:02:07]} 32. Qd3 {[%emt 0:07:23]} g4 {[%emt 0:07:49]} 33. Rc2 {[%emt 0:08:12]} Qg3 {[%emt 0:06:24]} 34. hxg4 {[%emt 0:04:43]} Bxg4 {[%emt 0:01:43]} 35. Qd4 {[%emt 0:01:41]} Qf4 {[%emt 0:06:11]} 36. Rd2 {[%emt 0:01:12]} Rg8 {[%emt 0:02:13]} 37. d6 {[%emt 0:00:34]} Rg7 {[%emt 0:04:17]} 38. Bd5 {[%emt 0:01:59]} Qg5 {[%emt 0:00:50]} 39. Re1 {[%emt 0:01:05]} Bd7 {[%emt 0:01:25]} 40. Bxb7 {[%emt 0:01:11]} Kg8 {[%emt 0:00:50]} 41. Qd5+ {[%emt 0:00:30]} Qxd5 {[%emt 0:00:34]} 42. Bxd5+ {[%emt 0:00:03]} Kf8 {[%emt 0:00:05]} 43. Rb2 {[%emt 0:01:34]} Rg5 {[%emt 0:00:31]} 44. Rd1 {[%emt 0:00:39]} Rff5 {[%emt 0:00:51]} 45. Rb8+ {[%emt 0:00:27]} Kg7 {[%emt 0:00:19]} 46. Rb7 {[%emt 0:00:23]} Rxg2+ {[%emt 0:00:45]} 47. Kf1 {[%emt 0:00:01]} Rh2 {[%emt 0:00:17]} 48. Rxd7+ {[%emt 0:00:04]} Kh6 {[%emt 0:00:07]} 49. Be4 {[%emt 0:00:47]} Rh1+ {[%emt 0:00:38]} 50. Kf2 {[%emt 0:00:02]} Rh2+ {[%emt 0:00:13]} 51. Ke3 {[%emt 0:00:02]} Re2+ {[%emt 0:00:16]} 52. Kd4 {[%emt 0:00:40]} Rf4 {[%emt 0:00:07]} 53. Rxh7+ {[%emt 0:00:04]} Kg5 {[%emt 0:00:05]} 54. Rg1+ {[%emt 0:00:02]} Kf6 {[%emt 0:00:15]} 55. Rg6# {[%emt 0:00:06]} 1-0

[Event "FIDE World Cup O12-A 2024"]
[Site "Batumi"]
[Date "2024.06.24"]
[Round "2.2"]
[White "Obidov, Biloliddin"]
[Black "Mamikonyan, Artem T"]
[Result "1-0"]
[ECO "E05"]
[WhiteElo "1998"]
[BlackElo "1855"]
[Annotator "RC"]
[PlyCount "69"]
[EventDate "2024.06.23"]
[EventType "swiss"]
[EventCountry "GEO"]
[SourceTitle "playchess.com"]
[Source "ChessBase"]
[SourceQuality "1"]
[TimeControl "5400+30"]

1. d4 {[%emt 0:00:01]} d5 {[%emt 0:00:19]} 2. c4 {[%emt 0:00:27]} e6 {[%emt 0:00:06]} 3. Nf3 {[%emt 0:00:22]} Nf6 {[%emt 0:00:07]} 4. g3 {[%emt 0:00:28]} Be7 {[%emt 0:00:09]} 5. Bg2 {[%emt 0:00:34]} O-O {[%emt 0:00:08]} 6. O-O {[%emt 0:00:11]} dxc4 {[%emt 0:00:07]} 7. Qc2 {[%emt 0:00:58]} a6 {[%emt 0:00:09]} 8. a4 {[%emt 0:00:16]} Bd7 {[%emt 0:00:11]} 9. Qxc4 {[%emt 0:00:54]} Bc6 {[%emt 0:00:09]} 10. Bg5 {[%emt 0:01:57]} Nbd7 {[%emt 0:12:25]} 11. Nc3 {[%emt 0:11:02]} Nd5 {[%emt 0:05:19]} 12. Bxe7 {[%emt 0:09:55]} Qxe7 {[%emt 0:00:17]} 13. Rfc1 {[%emt 0:05:11]} N7b6 {[%emt 0:12:43]} 14. Nxd5 {[%emt 0:03:24]} exd5 {[%emt 0:01:46]} 15. Qc2 {[%emt 0:00:25]} f6 {[%emt 0:03:26]} 16. b3 {[%emt 0:01:31]} Rae8 {[%emt 0:10:19]} 17. e3 {[%emt 0:00:21]} Nd7 {[%emt 0:12:05]} 18. Bf1 {[%emt 0:00:42]} Nb8 {[%emt 0:01:36]} 19. Bd3 {[%emt 0:00:48]} g6 {[%emt 0:01:49]} 20. h4 {[%emt 0:00:43]} Qe6 {[%emt 0:02:14]} 21. h5 {[%emt 0:05:10]} Qg4 {[%emt 0:00:33]} 22. Kg2 {[%emt 0:01:39]} Qxh5 {[%emt 0:35:33]} 23. Rh1 {[%emt 0:00:11]} Qg4 {[%emt 0:00:00]} 24. Rh4 {[%emt 0:00:39]} Qd7 {[%emt 0:00:00]} 25. Rah1 {[%emt 0:00:14]} f5 {[%emt 0:00:00]} 26. Rxh7 {[%emt 0:00:42]} Qxh7 {[%emt 0:00:00]} 27. Rxh7 {[%emt 0:00:04]} Kxh7 {[%emt 0:00:00]} 28. g4 {[%emt 0:01:00]} fxg4 {[%emt 0:00:00]} 29. Ne5 {[%emt 0:00:23]} Kg7 {[%emt 0:00:00]} 30. Nxg6 {[%emt 0:00:49]} Rf6 {[%emt 0:00:00]} 31. Nf4 {[%emt 0:02:03]} Rh8 {[%emt 0:00:00]} 32. Bg6 {[%emt 0:01:49]} Kh6 {[%emt 0:00:00]} 33. Bf7 {[%emt 0:06:10]} Rf8 {[%emt 0:00:00]} 34. Be6 {[%emt 0:01:10]} b6 {[%emt 0:00:00]} 35. Qd1 {[%emt 0:01:19]} 1-0

[Event "FIDE World Cup O12-A 2024"]
[Site "Batumi"]
[Date "2024.06.24"]
[Round "2.3"]
[White "Siddhanth Poonja"]
[Black "Yin, Zeming"]
[Result "1-0"]
[ECO "A13"]
[WhiteElo "1958"]
[BlackElo "1832"]
[Annotator "RC"]
[PlyCount "55"]
[EventDate "2024.06.23"]
[EventType "swiss"]
[EventCountry "GEO"]
[SourceTitle "playchess.com"]
[Source "ChessBase"]
[SourceQuality "1"]
[TimeControl "5400+30"]

1. c4 {[%emt 0:00:07]} e6 {[%emt 0:00:09]} 2. g3 {[%emt 0:00:11]} Nf6 {[%emt 0:00:13]} 3. Bg2 {[%emt 0:00:15]} d5 {[%emt 0:02:30]} 4. Nf3 {[%emt 0:00:12]} c6 {[%emt 0:00:45]} 5. O-O {[%emt 0:00:13]} Nbd7 {[%emt 0:01:36]} 6. b3 {[%emt 0:02:24]} Be7 {[%emt 0:10:40]} 7. Bb2 {[%emt 0:01:00]} b6 {[%emt 0:02:29]} 8. Nc3 {[%emt 0:05:44]} Bb7 {[%emt 0:02:48]} 9. e3 {[%emt 0:02:45]} O-O {[%emt 0:02:28]} 10. Qe2 {[%emt 0:03:42]} e5 {[%emt 0:02:23]} 11. d3 {[%emt 0:15:20]} Bb4 {[%emt 0:16:58]} 12. a3 {[%emt 0:05:28]} Bxc3 {[%emt 0:00:33]} 13. Bxc3 {[%emt 0:00:08]} e4 {[%emt 0:03:12]} 14. dxe4 {[%emt 0:04:07]} Nxe4 {[%emt 0:04:34]} 15. Bb2 {[%emt 0:02:59]} Ba6 {[%emt 0:05:43]} 16. Qc2 {[%emt 0:03:47]} Ndc5 {[%emt 0:11:28]} 17. Rfd1 {[%emt 0:04:41]} Qc8 {[%emt 0:02:26]} 18. b4 {[%emt 0:03:08]} Ne6 {[%emt 0:00:35]} 19. Nd4 {[%emt 0:03:09]} Nf6 {[%emt 0:06:03]} 20. Nf5 {[%emt 0:02:06]} Qd8 {[%emt 0:01:29]} 21. b5 {[%emt 0:01:21]} cxb5 {[%emt 0:01:36]} 22. cxd5 {[%emt 0:01:25]} Rc8 {[%emt 0:00:20]} 23. Qb1 {[%emt 0:00:09]} Nc5 {[%emt 0:00:40]} 24. d6 {[%emt 0:00:10]} Ra8 {[%emt 0:04:17]} 25. Ne7+ {[%emt 0:00:09]} Kh8 {[%emt 0:00:10]} 26. Bxf6 {[%emt 0:00:17]} gxf6 {[%emt 0:00:04]} 27. Qf5 {[%emt 0:00:04]} Ne6 {[%emt 0:01:31]} 28. Be4 {[%emt 0:00:10]} 1-0

[Event "FIDE World Cup O12-A 2024"]
[Site "Batumi"]
[Date "2024.06.24"]
[Round "2.4"]
[White "Yerzhanuly Yernur"]
[Black "Bulgak, Damir"]
[Result "0-1"]
[ECO "D01"]
[WhiteElo "1810"]
[BlackElo "1931"]
[Annotator "NA RC"]
[PlyCount "70"]
[EventDate "2024.06.23"]
[EventType "swiss"]
[EventCountry "GEO"]
[SourceTitle "playchess.com"]
[Source "ChessBase"]
[SourceQuality "1"]
[TimeControl "5400+30"]

1. d4 {[%emt 1:31:00]} Nf6 {[%emt 0:00:51]} 2. Bf4 {[%emt 0:00:00]} g6 {[%emt 0:00:10]} 3. Nc3 {[%emt 0:00:00]} d5 {[%emt 0:00:38]} 4. Qd2 {[%emt 0:00:00]} Bg7 {[%emt 0:00:28]} 5. Bh6 {[%emt 0:00:00]} O-O {[%emt 0:00:24]} 6. Bxg7 {[%emt 0:00:00] D01: Veresov Opening.} Kxg7 {[%emt 0:00:12]} 7. O-O-O {[%emt 0:00:00]} c6 {[%emt 0:03:08]} 8. f3 {[%emt 0:00:00]} b5 {[%emt 0:03:41]} 9. e4 {[%emt 0:00:00]} b4 {[%emt 0:02:16]} 10. e5 {[%emt 0:00:00]} bxc3 {[%emt 0:00:44]} 11. exf6+ {[%emt 0:00:00]} exf6 {[%emt 0:00:01]} 12. Qxc3 {[%emt 0:00:00]} Qd6 {[%emt 0:03:10]} 13. h4 {[%emt 0:00:00]} h5 {[%emt 0:02:01]} 14. Be2 {[%emt 0:00:00]} (14. Kb1 $11) 14... Qg3 {[%emt 0:02:58]} 15. Bd3 {[%emt 0:00:00]} Qxg2 {[%emt 0:04:50]} 16. Ne2 {[%emt 0:00:00]} Qxf3 {[%emt 0:00:58]} 17. Rhg1 {[%emt 0:00:00]} (17. Rde1 $17 {was called for.}) 17... Bg4 {[%emt 0:03:39]} 18. Rg3 {[%emt 0:00:00]} Qf2 {[%emt 0:00:19]} 19. Rdg1 {[%emt 0:00:00]} Re8 {[%emt 0:03:44]} ({Weaker is} 19... Bxe2 20. Qd2 $17) 20. b3 $19 {[%emt 0:00:00]} (20. Qe1 $142 Qxe1+ (20... Rxe2 $2 21. Bxe2 Qxe2 22. Qxe2 $19) 21. Rxe1) 20... f5 {[%emt 0:07:04]} 21. Kb2 {[%emt 0:00:00]} f4 {[%emt 0:06:57]} 22. R1g2 {[%emt 0:00:00]} fxg3 {[%emt 0:02:56]} 23. Rxf2 {[%emt 0:00:00]} gxf2 {[%emt 0:00:07]} 24. Ng3 {[%emt 0:00:00]} Re3 {[%emt 0:00:55]} 25. Nf1 {[%emt 0:00:09]} Rf3 {[%emt 0:00:13]} 26. Qd2 {[%emt 0:03:21]} Nd7 {[%emt 0:01:07]} 27. Be2 {[%emt 0:00:30]} Rf5 {[%emt 0:50:29]} 28. Ng3 {[%emt 0:02:08]} Rf6 {[%emt 0:00:00]} 29. Bxg4 {[%emt 0:00:10]} hxg4 {[%emt 0:00:00]} 30. Qe2 {[%emt 0:00:58]} Rf3 {[%emt 0:00:00]} 31. Nf1 {[%emt 0:00:13]} Nf6 {[%emt 0:00:00]} 32. Nh2 {[%emt 0:01:55]} Rf5 {[%emt 0:00:00]} 33. Nf1 {[%emt 0:00:21]} Re8 {[%emt 0:00:00]} 34. Qa6 {[%emt 0:00:13]} Re1 {[%emt 0:00:00]} 35. a4 {[%emt 0:00:30]} Rxf1 {[%emt 0:00:00]} 0-1

[Event "FIDE World Cup O12-A 2024"]
[Site "Batumi"]
[Date "2024.06.24"]
[Round "2.5"]
[White "Kristesiashvili, Andria"]
[Black "Li, Yiheng"]
[Result "1/2-1/2"]
[ECO "B95"]
[WhiteElo "1728"]
[BlackElo "1886"]
[Annotator "NA RC"]
[PlyCount "122"]
[EventDate "2024.06.23"]
[EventType "swiss"]
[EventCountry "GEO"]
[SourceTitle "playchess.com"]
[Source "ChessBase"]
[SourceQuality "1"]
[TimeControl "5400+30"]

1. e4 {[%emt 0:00:02]} c5 {[%emt 0:00:06]} 2. Nf3 {[%emt 0:00:04]} d6 {[%emt 0:00:03]} 3. d4 {[%emt 0:00:09]} cxd4 {[%emt 0:00:06]} 4. Nxd4 {[%emt 0:00:04]} Nf6 {[%emt 0:00:07]} 5. Nc3 {[%emt 0:00:05]} a6 {[%emt 0:00:34]} 6. Bg5 {[%emt 0:00:13]} e6 {[%emt 0:00:59]} 7. Qf3 {[%emt 0:00:25]} Nbd7 {[%emt 0:01:08]} 8. O-O-O {[%emt 0:01:33]} Qc7 {[%emt 0:01:53]} 9. g4 {[%emt 0:04:44] B95: Sicilian Najdorf: 6 Bg5 e6, unusual White 7th moves.} Be7 {[%emt 0:08:31]} 10. Bd2 {[%emt 0:04:02]} Ne5 {[%emt 0:08:39]} 11. Qg2 {[%emt 0:01:34]} Nfd7 {[%emt 0:02:28]} 12. f4 {[%emt 0:02:38]} Nc4 {[%emt 0:02:48]} 13. Bxc4 {[%emt 0:06:31]} Qxc4 {[%emt 0:00:07]} 14. Be3 {[%emt 0:02:11]} Rb8 {[%emt 0:12:45]} 15. Qe2 {[%emt 0:06:33]} Qxe2 {[%emt 0:00:59]} 16. Ndxe2 {[%emt 0:00:15]} b5 {[%emt 0:01:13]} 17. a3 {[%emt 0:04:02]} Bb7 {[%emt 0:02:59]} 18. g5 {[%emt 0:02:23]} f5 {[%emt 0:04:36]} (18... h6 $142) 19. gxf6 {[%emt 0:04:16]} Nxf6 {[%emt 0:00:39]} 20. Rhg1 {[%emt 0:02:34]} Nxe4 {[%emt 0:09:50]} 21. Rxg7 {[%emt 0:01:57]} Nxc3 {[%emt 0:03:05]} 22. Nxc3 {[%emt 0:00:18]} Rc8 $14 {[%emt 0:07:17]} (22... Bf6 $11 23. Rxb7 (23. Rc7 Bd8 $11) 23... Rxb7) 23. Bd4 {[%emt 0:11:37]} Rf8 {[%emt 0:03:25]} 24. Be3 {[%emt 0:03:05]} Rf7 {[%emt 0:01:10]} 25. Rg3 {[%emt 0:01:32]} Kd7 {[%emt 0:01:45]} 26. Rd2 {[%emt 0:08:27]} Rcf8 {[%emt 0:08:59]} 27. Ne2 {[%emt 0:07:39]} Be4 {[%emt 0:04:29]} 28. Nd4 {[%emt 0:08:14]} d5 {[%emt 0:01:47]} 29. Nf3 {[%emt 0:02:15]} Bxf3 {[%emt 0:00:26]} 30. Rxf3 {[%emt 0:00:06]} Bd6 {[%emt 0:00:43]} 31. Rh3 {[%emt 0:00:34]} Bxf4 {[%emt 0:04:02]} 32. Bxf4 {[%emt 0:00:04]} Rxf4 {[%emt 0:00:06]} 33. Rxh7+ {[%emt 0:00:06]} R4f7 {[%emt 0:00:29]} 34. Rxf7+ {[%emt 0:01:41]} Rxf7 {[%emt 0:00:04]} 35. Re2 {[%emt 0:01:16]} Kd6 {[%emt 0:02:41]} 36. Kd2 {[%emt 0:00:30]} e5 {[%emt 0:00:53]} 37. Rg2 {[%emt 0:00:41]} Rf6 {[%emt 0:00:17]} 38. Ke2 {[%emt 0:00:37]} d4 {[%emt 0:02:57]} 39. c3 {[%emt 0:01:04]} Kd5 {[%emt 0:00:45]} 40. cxd4 {[%emt 0:00:53]} Kxd4 {[%emt 0:00:57]} 41. h4 {[%emt 0:00:59]} e4 {[%emt 0:02:20]} 42. Rg3 {[%emt 0:00:33]} Rc6 {[%emt 0:01:08]} 43. Kd2 {[%emt 0:00:25]} Rh6 {[%emt 0:00:30]} 44. Rg4 {[%emt 0:00:33]} Rh5 {[%emt 0:00:30]} 45. Rf4 {[%emt 0:02:54]} a5 {[%emt 0:00:12]} 46. b4 {[%emt 0:02:57]} axb4 {[%emt 0:00:09]} 47. axb4 {[%emt 0:00:04]} Rh6 {[%emt 0:00:53]} 48. Rf5 {[%emt 0:01:45]} Rxh4 {[%emt 0:00:47]} 49. Rxb5 {[%emt 0:00:05]} Rh2+ {[%emt 0:00:15]} 50. Kd1 {[%emt 0:01:08]} Kd3 {[%emt 0:01:23]} 51. Rd5+ {[%emt 0:00:16]} Ke3 {[%emt 0:00:12]} 52. b5 {[%emt 0:00:28]} Rh1+ {[%emt 0:00:30]} 53. Kc2 {[%emt 0:00:08]} Ke2 {[%emt 0:00:33]} 54. Rd2+ {[%emt 0:01:56]} Ke3 {[%emt 0:00:10]} 55. Rd1 {[%emt 0:00:34]} Rh5 {[%emt 0:00:51]} 56. Rb1 {[%emt 0:00:50]} Rc5+ {[%emt 0:00:09]} 57. Kd1 {[%emt 0:00:05]} Rd5+ {[%emt 0:00:21]} 58. Ke1 {[%emt 0:00:56]} Rd7 {[%emt 0:00:40]} 59. b6 {[%emt 0:00:22]} Rb7 {[%emt 0:00:03]} 60. Rb3+ {[%emt 0:00:09]} Kd4 {[%emt 0:00:08]} 61. Ke2 {[%emt 0:00:22]} Kc5 {[%emt 0:00:11]} 1/2-1/2

[Event "FIDE World Cup O12-A 2024"]
[Site "Batumi"]
[Date "2024.06.24"]
[Round "2.6"]
[White "Syed Abdul Khader"]
[Black "Berdashkevich, Makar"]
[Result "1-0"]
[ECO "E20"]
[WhiteElo "2050"]
[BlackElo "1650"]
[Annotator "NA RC"]
[PlyCount "147"]
[EventDate "2024.06.23"]
[EventType "swiss"]
[EventCountry "GEO"]
[SourceTitle "playchess.com"]
[Source "ChessBase"]
[SourceQuality "1"]
[TimeControl "5400+30"]

1. d4 {[%emt 0:00:03]} Nf6 {[%emt 0:02:58]} 2. c4 {[%emt 0:00:08]} e6 {[%emt 0:00:39]} 3. Nc3 {[%emt 0:00:04]} Bb4 {[%emt 0:00:29]} 4. f3 {[%emt 0:00:03]} c5 {[%emt 0:03:53]} 5. d5 {[%emt 0:00:31]} b5 {[%emt 0:03:29]} 6. e4 {[%emt 0:00:13]} bxc4 {[%emt 0:07:39]} 7. Bxc4 {[%emt 0:00:26]} Nxd5 {[%emt 0:20:26]} 8. Bxd5 {[%emt 0:00:13]} exd5 {[%emt 0:00:08]} 9. Qxd5 {[%emt 0:00:03]} Nc6 {[%emt 0:01:25]} 10. Nge2 {[%emt 0:00:25]} Ba6 {[%emt 0:01:55]} 11. Kf2 {[%emt 0:12:12]} O-O {[%emt 0:12:55]} 12. Bf4 {[%emt 0:04:22]} Ba5 {[%emt 0:05:57]} 13. a3 {[%emt 0:01:46]} Bb6 {[%emt 0:01:43]} 14. Rad1 {[%emt 0:33:43]} Nd4 {[%emt 0:07:25]} 15. Be5 {[%emt 0:06:00]} Nc6 {[%emt 0:09:05]} 16. Bd6 $11 {[%emt 0:02:40]} Re8 {[%emt 0:00:49]} 17. g3 {[%emt 0:02:45]} Rc8 {[%emt 0:02:18]} 18. Nf4 {[%emt 0:15:22]} Nd4 {[%emt 0:03:22]} 19. Qh5 {[%emt 0:00:45]} Ne6 {[%emt 0:02:27]} 20. Nfd5 {[%emt 0:00:33]} Rc6 {[%emt 0:02:07]} 21. e5 {[%emt 0:01:00]} c4+ {[%emt 0:03:06]} 22. Kg2 {[%emt 0:00:13]} Bc5 {[%emt 0:01:45]} 23. Ne4 {[%emt 0:00:41]} Bxd6 {[%emt 0:02:52]} 24. Nxd6 {[%emt 0:10:14]} Rxd6 {[%emt 0:02:51]} 25. exd6 {[%emt 0:00:02]} Qb8 {[%emt 0:00:38]} 26. Qe5 {[%emt 0:00:41]} c3 {[%emt 0:00:34]} 27. Qxc3 {[%emt 0:01:19]} Bb7 {[%emt 0:00:28]} 28. Ne7+ {[%emt 0:00:55]} Kh8 {[%emt 0:00:14]} 29. h4 {[%emt 0:00:08]} a5 {[%emt 0:00:49]} 30. Rhe1 {[%emt 0:00:10]} a4 {[%emt 0:00:15]} 31. Kh2 {[%emt 0:01:11]} Ba8 {[%emt 0:00:46]} 32. Rd2 {[%emt 0:01:08]} Qb5 {[%emt 0:00:29]} 33. Re5 {[%emt 0:01:40]} Qf1 {[%emt 0:00:19]} 34. Qd3 {[%emt 0:00:12]} Qxf3 {[%emt 0:00:35]} 35. Qxf3 {[%emt 0:00:18]} Bxf3 {[%emt 0:00:04]} 36. Rf5 {[%emt 0:00:32]} Bg4 {[%emt 0:00:30]} 37. Ra5 {[%emt 0:00:28]} h5 {[%emt 0:00:20]} 38. Rxa4 {[%emt 0:00:05]} g5 {[%emt 0:00:05]} 39. Rc4 {[%emt 0:00:23]} gxh4 {[%emt 0:00:52]} 40. gxh4 {[%emt 0:00:03]} f5 {[%emt 0:00:30]} 41. Rf2 {[%emt 0:00:21]} f4 {[%emt 0:00:46]} 42. Ng6+ {[%emt 0:00:09]} Kh7 {[%emt 0:00:17]} 43. Nxf4 {[%emt 0:00:18]} Rf8 {[%emt 0:00:24]} 44. Kg3 {[%emt 0:00:10]} Rg8 {[%emt 0:00:03]} 45. Kh2 {[%emt 0:00:10]} Rf8 {[%emt 0:00:06]} 46. Nh3 {[%emt 0:00:21]} Rb8 {[%emt 0:00:38]} 47. Nf4 {[%emt 0:00:28]} Rf8 {[%emt 0:00:22]} 48. Nd3 {[%emt 0:00:01]} Rb8 {[%emt 0:00:55]} 49. Ne5 {[%emt 0:00:16]} Rb6 {[%emt 0:00:44]} 50. Nxd7 {[%emt 0:00:48]} Rxd6 {[%emt 0:00:08]} 51. Nf6+ {[%emt 0:00:04]} Kg6 {[%emt 0:00:09]} 52. Nxg4 {[%emt 0:00:11]} hxg4 {[%emt 0:00:06]} 53. Rxg4+ {[%emt 0:00:07]} Kh5 {[%emt 0:00:05]} 54. Re4 {[%emt 0:00:44]} Nd4 {[%emt 0:00:22]} 55. b4 {[%emt 0:00:55]} Nb3 {[%emt 0:01:15]} 56. Re5+ {[%emt 0:00:15]} Kg4 {[%emt 0:00:19]} 57. Re3 {[%emt 0:00:23]} Nd4 {[%emt 0:00:13]} 58. Rd3 {[%emt 0:00:23]} Rd5 {[%emt 0:01:23]} 59. b5 {[%emt 0:00:04]} Rd6 {[%emt 0:00:46]} 60. b6 {[%emt 0:00:05]} Rxb6 {[%emt 0:00:14]} 61. Rxd4+ {[%emt 0:00:06]} Kh5 {[%emt 0:00:09]} 62. a4 {[%emt 0:00:11]} Ra6 {[%emt 0:00:03]} 63. Rf5+ {[%emt 0:00:04]} Kh6 {[%emt 0:00:06]} 64. a5 {[%emt 0:00:04]} Ra7 {[%emt 0:00:08]} 65. Rd6+ {[%emt 0:00:16]} Kh7 {[%emt 0:00:09]} 66. a6 {[%emt 0:00:07]} Rc7 {[%emt 0:00:14]} 67. Rb5 {[%emt 0:00:07]} Rc2+ {[%emt 0:00:07]} 68. Kg3 {[%emt 0:00:06]} Rc3+ {[%emt 0:00:03]} 69. Kf4 {[%emt 0:00:03]} Rc4+ {[%emt 0:00:03]} 70. Kg5 {[%emt 0:00:16]} Rc8 {[%emt 0:00:15]} 71. a7 {[%emt 0:00:14]} Rg8+ {[%emt 0:00:05]} 72. Kh5 {[%emt 0:00:06]} Rh8 {[%emt 0:00:28]} 73. Rh6+ {[%emt 0:00:12]} Kg7 {[%emt 0:00:06]} 74. Rb7+ {[%emt 0:00:04]} 1-0

[Event "FIDE World Cup O12-A 2024"]
[Site "Batumi"]
[Date "2024.06.24"]
[Round "2.7"]
[White "Kleschevnikov, Arseny"]
[Black "Sobirov, Afruzbek"]
[Result "1/2-1/2"]
[ECO "E20"]
[WhiteElo "1895"]
[BlackElo "1789"]
[Annotator "NA RC"]
[PlyCount "111"]
[EventDate "2024.06.23"]
[EventType "swiss"]
[EventCountry "GEO"]
[SourceTitle "playchess.com"]
[Source "ChessBase"]
[SourceQuality "1"]
[TimeControl "5400+30"]

1. d4 {[%emt 0:00:02]} Nf6 {[%emt 0:00:07]} 2. c4 {[%emt 0:00:05]} e6 {[%emt 0:00:07]} 3. Nc3 {[%emt 0:00:04]} Bb4 {[%emt 0:00:09]} 4. f3 {[%emt 0:00:05]} c5 {[%emt 0:10:21]} 5. d5 {[%emt 0:00:31]} d6 {[%emt 0:03:14]} 6. e4 {[%emt 0:00:43]} Bxc3+ {[%emt 0:01:39]} 7. bxc3 {[%emt 0:00:18]} e5 {[%emt 0:01:58]} 8. Ne2 {[%emt 0:00:39]} h6 {[%emt 0:04:58]} 9. Be3 {[%emt 0:09:43]} Qa5 {[%emt 0:04:38]} 10. Qb3 {[%emt 0:16:57]} Nbd7 {[%emt 0:05:22]} 11. Ng3 {[%emt 0:03:37]} Nb6 {[%emt 0:00:22]} 12. Be2 {[%emt 0:01:35]} Bd7 {[%emt 0:01:50]} 13. O-O {[%emt 0:06:19]} g5 {[%emt 0:00:15]} 14. a4 {[%emt 0:06:06]} O-O-O {[%emt 0:05:23]} 15. Rfb1 {[%emt 0:11:28]} Rhg8 {[%emt 0:01:36]} 16. Qb2 {[%emt 0:07:34]} Rg7 $16 {[%emt 0:05:13]} 17. Bd3 {[%emt 0:10:56]} h5 {[%emt 0:00:33]} 18. Nf1 {[%emt 0:01:12]} h4 {[%emt 0:15:08]} 19. Nd2 {[%emt 0:01:33]} Nh5 {[%emt 0:01:27]} 20. h3 {[%emt 0:06:40]} Nf4 {[%emt 0:01:08]} 21. Bf1 {[%emt 0:00:09]} Rdg8 {[%emt 0:01:06]} 22. Nb3 {[%emt 0:02:44]} Qa6 {[%emt 0:00:05]} 23. a5 {[%emt 0:00:20]} Na8 {[%emt 0:00:52]} 24. Qf2 {[%emt 0:07:04]} f5 {[%emt 0:01:26]} 25. Bxf4 {[%emt 0:04:09]} gxf4 {[%emt 0:00:33]} 26. Kh2 {[%emt 0:01:16]} fxe4 {[%emt 0:00:14]} 27. fxe4 {[%emt 0:00:01]} Rg3 {[%emt 0:00:53]} 28. Nd2 {[%emt 0:00:38]} Nc7 {[%emt 0:01:28]} 29. Nf3 {[%emt 0:00:17]} Ne8 {[%emt 0:00:27]} 30. Bd3 {[%emt 0:01:46]} Nf6 {[%emt 0:00:48]} 31. Ra2 {[%emt 0:00:27]} Bg4 {[%emt 0:03:11]} 32. Re1 {[%emt 0:00:32]} Bxf3 {[%emt 0:00:30]} 33. gxf3 {[%emt 0:00:02]} Nh7 {[%emt 0:00:07]} 34. Qf1 {[%emt 0:01:15]} Ng5 {[%emt 0:00:57]} 35. Be2 {[%emt 0:00:15]} Rxh3+ {[%emt 0:00:58]} 36. Qxh3+ {[%emt 0:00:04]} Nxh3 {[%emt 0:00:05]} 37. Kxh3 {[%emt 0:00:02]} Rg3+ {[%emt 0:00:13]} 38. Kh2 {[%emt 0:00:20]} b6 {[%emt 0:03:55]} 39. Rea1 {[%emt 0:00:20]} Kb8 {[%emt 0:00:24]} 40. axb6 {[%emt 0:01:21]} Qxb6 {[%emt 0:00:25]} 41. Ra5 {[%emt 0:00:36]} Qc7 {[%emt 0:00:06]} 42. Rb5+ {[%emt 0:00:24]} Kc8 {[%emt 0:00:08]} 43. Rab1 {[%emt 0:00:38]} h3 {[%emt 0:00:54]} 44. Bf1 {[%emt 0:00:36]} Rxf3 {[%emt 0:02:36]} 45. Bxh3+ {[%emt 0:00:03]} Rxh3+ {[%emt 0:00:06]} 46. Kxh3 {[%emt 0:00:03]} Qh7+ {[%emt 0:01:33]} 47. Kg4 {[%emt 0:00:58]} Qg6+ {[%emt 0:00:17]} 48. Kf3 {[%emt 0:00:18]} Qg3+ {[%emt 0:00:22]} 49. Ke2 {[%emt 0:00:03]} Qe3+ {[%emt 0:00:12]} 50. Kf1 {[%emt 0:00:28]} Qf3+ {[%emt 0:02:12]} 51. Kg1 {[%emt 0:00:08]} Qg3+ {[%emt 0:00:58]} 52. Kf1 {[%emt 0:00:14]} Qd3+ {[%emt 0:00:52]} 53. Kg1 {[%emt 0:00:08]} Qg3+ {[%emt 0:01:00]} 54. Kf1 {[%emt 0:00:03]} Qh3+ {[%emt 0:00:17]} 55. Kg1 {[%emt 0:00:09]} Qg4+ {[%emt 0:01:47]} 56. Kf1 {[%emt 0:00:15]} 1/2-1/2